[Event "94th FRA-ch Open B 2019"]
[Site "Chartres"]
[Date "2019.08.17"]
[Round "1.1"]
[White "Trouville, Remi"]
[Black "Capton, Rafael"]
[Result "1-0"]
[ECO "B08"]
[WhiteElo "1991"]
[BlackElo "1851"]
[Annotator "NA"]
[PlyCount "71"]
[EventDate "2019.08.17"]
[EventType "swiss"]
[EventCountry "FRA"]
[SourceTitle "playchess.com"]
[Source "ChessBase"]
[SourceQuality "1"]
[TimeControl "40/5400+30:1800+30"]

1. d4 {[%emt 0:00:00]} Nf6 {[%emt 0:00:00]} 2. Nc3 {[%emt 0:00:10]} g6 {[%emt 0:00:39]} 3. e4 {[%emt 0:00:44]} d6 {[%emt 0:00:14]} 4. Nf3 {[%emt 0:03:04]} Bg7 {[%emt 0:00:30]} 5. Bg5 {[%emt 0:04:48]} O-O {[%emt 0:01:45]} 6. h3 {[%emt 0:06:46]} c5 {[%emt 0:08:01]} 7. Be2 {[%emt 0:15:33]} Qb6 {[%emt 0:01:06]} 8. O-O {[%emt 0:09:50]} cxd4 {[%emt 0:09:22]} 9. Bxf6 {[%emt 0:10:18]} dxc3 {[%emt 0:01:08]} 10. Bxg7 {[%emt 0:04:15]} Kxg7 {[%emt 1:12:15]} 11. bxc3 {[%emt 0:02:03]} Nc6 {[%emt 0:00:00]} 12. Nd4 {[%emt 0:04:17]} Bd7 {[%emt 0:00:00]} 13. Rb1 {[%emt 0:02:25]} Qc7 {[%emt 0:00:00]} 14. f4 {[%emt 0:03:15]} Rac8 {[%emt 0:00:00]} 15. Bd3 {[%emt 0:02:24]} e5 {[%emt 0:00:00]} 16. Ne2 {[%emt 0:06:34]} a6 {[%emt 0:00:00]} 17. f5 {[%emt 0:01:57]} f6 {[%emt 0:00:00]} 18. Ng3 {[%emt 0:03:06]} Ne7 {[%emt 0:00:00]} 19. Qg4 {[%emt 0:02:37]} Kh8 {[%emt 0:00:00]} 20. Qh4 {[%emt 0:01:45]} b5 {[%emt 0:00:00]} 21. fxg6 {[%emt 0:01:13]} Nxg6 {[%emt 0:00:00]} 22. Qh6 {[%emt 0:00:32]} Be6 {[%emt 0:00:00]} 23. Nh5 {[%emt 0:01:49]} Qe7 {[%emt 0:00:00]} 24. Rf2 {[%emt 0:01:58]} Rf7 {[%emt 0:00:00]} 25. Rbf1 {[%emt 0:00:35]} Rcf8 {[%emt 0:00:00]} 26. g4 {[%emt 0:02:53]} Bxa2 {[%emt 0:00:00]} 27. Ra1 {[%emt 0:02:27]} Qe6 {[%emt 0:00:00]} 28. Rxf6 {[%emt 0:01:27]} Qe7 {[%emt 0:00:00]} 29. Rxg6 {[%emt 0:02:42]} Qa7+ {[%emt 0:00:00]} 30. Kh1 {[%emt 0:00:32]} Qf2 {[%emt 0:00:00]} 31. Rf6 {[%emt 0:01:46]} Qh4 {[%emt 0:00:00]} 32. Kg2 {[%emt 0:00:43]} Be6 {[%emt 0:00:00]} 33. Raf1 {[%emt 0:01:17]} Bxg4 {[%emt 0:00:00]} 34. hxg4 {[%emt 0:00:38]} Rg8 {[%emt 0:00:00]} 35. Be2 {[%emt 0:00:26]} Rc7 {[%emt 0:00:00]} 36. Rf7 {[%emt 0:00:32]} 1-0

[Event "94th FRA-ch Open B 2019"]
[Site "Chartres"]
[Date "2019.08.17"]
[Round "1.2"]
[White "Dieuleveut, Floriane"]
[Black "Le Menelec, Erwan-Son"]
[Result "1/2-1/2"]
[ECO "B07"]
[WhiteElo "1848"]
[BlackElo "1986"]
[Annotator "NA"]
[PlyCount "47"]
[EventDate "2019.08.17"]
[EventType "swiss"]
[EventCountry "FRA"]
[SourceTitle "playchess.com"]
[Source "ChessBase"]
[SourceQuality "1"]
[TimeControl "40/5400+30:1800+30"]

1. e4 {[%emt 0:00:00]} d6 {[%emt 0:00:00]} 2. Nc3 {[%emt 0:00:13]} g6 {[%emt 0:00:00]} 3. Bc4 {[%emt 0:00:54]} Bg7 {[%emt 0:00:24]} 4. f4 {[%emt 0:02:22]} Nf6 {[%emt 0:00:26]} 5. Nf3 {[%emt 0:00:49]} Nxe4 {[%emt 0:03:57]} 6. Bxf7+ {[%emt 0:08:50]} Kxf7 {[%emt 0:00:08]} 7. Nxe4 {[%emt 0:00:09]} d5 {[%emt 0:00:34]} 8. Neg5+ {[%emt 0:07:50]} Kg8 {[%emt 0:00:09]} 9. Ne5 {[%emt 0:05:13]} Bxe5 {[%emt 0:10:12]} 10. fxe5 {[%emt 0:00:50]} h6 {[%emt 0:01:14]} 11. Nf3 {[%emt 0:10:45]} d4 {[%emt 0:04:13]} 12. O-O {[%emt 0:18:13]} Kg7 {[%emt 0:23:49]} 13. d3 {[%emt 0:15:04]} Rf8 {[%emt 0:03:44]} 14. Qd2 {[%emt 0:03:11]} Rh8 {[%emt 0:15:47]} 15. Qf2 {[%emt 0:03:05]} Nc6 {[%emt 0:09:16]} 16. Nh4 {[%emt 0:07:08]} Nxe5 {[%emt 0:07:48]} 17. Qg3 {[%emt 0:08:52]} Ng4 {[%emt 0:00:50]} 18. h3 {[%emt 0:01:26]} g5 {[%emt 0:00:31]} 19. hxg4 {[%emt 0:02:51]} gxh4 {[%emt 0:00:04]} 20. Qe5+ {[%emt 0:00:31]} Kg8 {[%emt 0:00:37]} 21. Qh5 {[%emt 0:00:51]} Rh7 {[%emt 0:01:18]} 22. Bxh6 {[%emt 0:00:33]} Kh8 {[%emt 0:09:26]} 23. Qe5+ {[%emt 0:00:22]} Kg8 {[%emt 0:00:03]} 24. Qg5+ {[%emt 0:00:16]} 1/2-1/2

[Event "94th FRA-ch Open B 2019"]
[Site "Chartres"]
[Date "2019.08.17"]
[Round "1.3"]
[White "Partinico, Jeremy"]
[Black "Constantin, Francois"]
[Result "0-1"]
[ECO "B01"]
[WhiteElo "1985"]
[BlackElo "1844"]
[Annotator "NA"]
[PlyCount "79"]
[EventDate "2019.08.17"]
[EventType "swiss"]
[EventCountry "FRA"]
[SourceTitle "playchess.com"]
[Source "ChessBase"]
[SourceQuality "1"]
[TimeControl "40/5400+30:1800+30"]

1. e4 {[%emt 0:00:00]} d5 {[%emt 0:00:00]} 2. exd5 {[%emt 0:00:00]} Nf6 {[%emt 0:00:00]} 3. d4 {[%emt 0:00:09]} Nxd5 {[%emt 0:00:00]} 4. c4 {[%emt 0:00:10]} Nb6 {[%emt 0:00:00]} 5. Nf3 {[%emt 0:00:59]} Bg4 {[%emt 0:00:00]} 6. c5 {[%emt 0:02:51]} N6d7 {[%emt 0:01:26]} 7. Bc4 {[%emt 0:00:46]} e6 {[%emt 0:01:51]} 8. h3 {[%emt 0:08:00]} Bxf3 {[%emt 0:05:44]} 9. Qxf3 {[%emt 0:00:17]} Nc6 {[%emt 0:00:12]} 10. Be3 {[%emt 0:03:51]} Be7 {[%emt 0:02:59]} 11. Bb5 {[%emt 0:04:10]} O-O {[%emt 0:01:56]} 12. Bxc6 {[%emt 0:01:39]} bxc6 {[%emt 0:00:07]} 13. Qxc6 {[%emt 0:00:43]} Nf6 {[%emt 0:02:08]} 14. Nc3 {[%emt 0:02:12]} Qb8 {[%emt 0:10:50]} 15. b3 {[%emt 0:09:39]} Qb4 {[%emt 0:03:11]} 16. Rc1 {[%emt 0:00:24]} Nd5 {[%emt 0:00:35]} 17. Qb5 {[%emt 0:00:41]} a5 {[%emt 0:05:42]} 18. Qxb4 {[%emt 0:05:15]} axb4 {[%emt 0:00:17]} 19. Na4 {[%emt 0:01:45]} Bf6 {[%emt 0:02:37]} 20. Ke2 {[%emt 0:02:17]} Rfd8 {[%emt 0:02:29]} 21. Rc4 {[%emt 0:02:19]} Nc3+ {[%emt 0:04:05]} 22. Nxc3 {[%emt 0:00:08]} bxc3 {[%emt 0:00:05]} 23. a4 {[%emt 0:05:13]} e5 {[%emt 0:08:12]} 24. dxe5 {[%emt 0:02:03]} Bxe5 {[%emt 0:00:15]} 25. Rd1 {[%emt 0:01:14]} Rdb8 {[%emt 0:02:37]} 26. Rb1 {[%emt 0:02:11]} Rd8 {[%emt 0:00:27]} 27. g4 {[%emt 0:01:35]} g6 {[%emt 0:01:10]} 28. Re4 {[%emt 0:13:33]} Re8 {[%emt 0:05:04]} 29. Rd1 {[%emt 0:03:06]} f5 {[%emt 0:00:22]} 30. gxf5 {[%emt 0:01:45]} gxf5 {[%emt 0:00:08]} 31. Rh4 {[%emt 0:01:15]} f4 {[%emt 0:03:26]} 32. Rg4+ {[%emt 0:00:52]} Kh8 {[%emt 0:03:54]} 33. Bc1 {[%emt 0:00:13]} c2 {[%emt 0:02:51]} 34. Rd5 {[%emt 0:01:11]} Bb2+ {[%emt 0:01:03]} 35. Kd2 {[%emt 0:00:02]} Re2+ {[%emt 0:02:37]} 36. Kxe2 {[%emt 0:00:19]} Bxc1 {[%emt 0:00:16]} 37. Kd3 {[%emt 0:00:14]} Be3 {[%emt 0:01:18]} 38. Kxc2 {[%emt 0:00:36]} Bxf2 {[%emt 0:00:45]} 39. Rxf4 {[%emt 0:00:05]} Bg3 {[%emt 0:00:45]} 40. Rg4 {[%emt 0:00:38]} 0-1

[Event "94th FRA-ch Open B 2019"]
[Site "Chartres"]
[Date "2019.08.17"]
[Round "1.4"]
[White "Famel, Edouard"]
[Black "Clementz, Joel"]
[Result "1-0"]
[ECO "E46"]
[WhiteElo "1844"]
[BlackElo "1969"]
[Annotator "NA"]
[PlyCount "87"]
[EventDate "2019.08.17"]
[EventType "swiss"]
[EventCountry "FRA"]
[SourceTitle "playchess.com"]
[Source "ChessBase"]
[SourceQuality "1"]
[TimeControl "40/5400+30:1800+30"]

1. d4 {[%emt 0:00:00]} Nf6 {[%emt 0:00:00]} 2. c4 {[%emt 0:00:00]} e6 {[%emt 0:00:00]} 3. Nc3 {[%emt 0:00:00]} Bb4 {[%emt 0:00:00]} 4. e3 {[%emt 0:00:00]} b6 {[%emt 0:00:24]} 5. Nge2 {[%emt 0:00:06]} Bb7 {[%emt 0:00:30]} 6. a3 {[%emt 0:00:09]} Be7 {[%emt 0:00:33]} 7. Nf4 {[%emt 0:02:47]} O-O {[%emt 0:01:48]} 8. Bd3 {[%emt 0:04:40]} d5 {[%emt 0:01:37]} 9. cxd5 {[%emt 0:00:23]} exd5 {[%emt 0:00:20]} 10. O-O {[%emt 0:00:32]} Nbd7 {[%emt 0:01:06]} 11. Qf3 {[%emt 0:03:01]} c6 {[%emt 0:05:38]} 12. Rd1 {[%emt 0:09:16]} Re8 {[%emt 0:00:50]} 13. g4 {[%emt 0:02:10]} Bf8 {[%emt 0:05:27]} 14. Qg2 {[%emt 0:03:38]} h6 {[%emt 0:02:25]} 15. h4 {[%emt 0:08:37]} Ne4 {[%emt 0:05:19]} 16. Nxe4 {[%emt 0:06:11]} dxe4 {[%emt 0:00:17]} 17. Bxe4 {[%emt 0:01:08]} Qxh4 {[%emt 0:01:05]} 18. Bf3 {[%emt 0:01:09]} Nf6 {[%emt 0:04:26]} 19. Nd3 {[%emt 0:00:38]} Bd6 {[%emt 0:03:35]} 20. e4 {[%emt 0:04:34]} Nh7 {[%emt 0:03:48]} 21. e5 {[%emt 0:03:09]} Be7 {[%emt 0:00:49]} 22. b4 {[%emt 0:08:00]} Rad8 {[%emt 0:02:11]} 23. Be3 {[%emt 0:02:43]} Ng5 {[%emt 0:06:09]} 24. Bxg5 {[%emt 0:00:10]} Bxg5 {[%emt 0:02:14]} 25. Ne1 {[%emt 0:02:05]} Re7 {[%emt 0:04:28]} 26. b5 {[%emt 0:08:17]} h5 {[%emt 0:08:53]} 27. bxc6 {[%emt 0:02:55]} Bc8 {[%emt 0:01:52]} 28. gxh5 {[%emt 0:07:08]} Rxd4 {[%emt 0:15:12]} 29. Rxd4 {[%emt 0:02:40]} Qxd4 {[%emt 0:00:09]} 30. Qxg5 {[%emt 0:03:27]} Rxe5 {[%emt 0:03:08]} 31. Qc1 {[%emt 0:00:22]} Rc5 {[%emt 0:04:13]} 32. Qd1 {[%emt 0:01:01]} Qf6 {[%emt 0:02:23]} 33. Ng2 {[%emt 0:00:26]} Bh3 {[%emt 0:03:25]} 34. Ra2 {[%emt 0:06:07]} Rc3 {[%emt 0:05:46]} 35. Be4 {[%emt 0:01:36]} Rc4 {[%emt 0:02:21]} 36. f3 {[%emt 0:02:48]} Qg5 {[%emt 0:01:27]} 37. Rd2 {[%emt 0:02:12]} Rd4 {[%emt 0:00:59]} 38. f4 {[%emt 0:00:10]} Rxd2 {[%emt 0:02:16]} 39. Qxd2 {[%emt 0:00:07]} Qc5+ {[%emt 0:00:49]} 40. Qe3 {[%emt 0:00:35]} Qxh5 {[%emt 0:00:46]} 41. Qd3 {[%emt 0:33:10]} Qc5+ {[%emt 0:30:51]} 42. Kh2 {[%emt 0:00:45]} Be6 {[%emt 0:00:35]} 43. Qd8+ {[%emt 0:00:13]} Qf8 {[%emt 0:00:10]} 44. Bh7+ {[%emt 0:00:18]} 1-0

[Event "94th FRA-ch Open B 2019"]
[Site "Chartres"]
[Date "2019.08.17"]
[Round "1.6"]
[White "Pinson, Alexis"]
[Black "Vekemans, Denis"]
[Result "1-0"]
[ECO "B01"]
[WhiteElo "1841"]
[BlackElo "1961"]
[Annotator "NA"]
[PlyCount "67"]
[EventDate "2019.08.17"]
[EventType "swiss"]
[EventCountry "FRA"]
[SourceTitle "playchess.com"]
[Source "ChessBase"]
[SourceQuality "1"]
[TimeControl "40/5400+30:1800+30"]

1. e4 {[%emt 0:00:00]} d5 {[%emt 0:00:00]} 2. exd5 {[%emt 0:00:00]} Qxd5 {[%emt 0:00:00]} 3. Nc3 {[%emt 0:00:00]} Qa5 {[%emt 0:00:09]} 4. Bc4 {[%emt 0:00:10]} Nf6 {[%emt 0:00:10]} 5. h3 {[%emt 0:00:17]} Nc6 {[%emt 0:00:19]} 6. Nf3 {[%emt 0:00:09]} Bf5 {[%emt 0:00:40]} 7. d3 {[%emt 0:00:07]} e6 {[%emt 0:00:25]} 8. O-O {[%emt 0:00:08]} O-O-O {[%emt 0:00:20]} 9. a3 {[%emt 0:00:50]} Bd6 {[%emt 0:03:31]} 10. Be3 {[%emt 0:05:58]} Ne5 {[%emt 0:00:31]} 11. Nd2 {[%emt 0:11:15]} c6 {[%emt 0:03:51]} 12. b4 {[%emt 0:04:41]} Qc7 {[%emt 0:07:13]} 13. b5 {[%emt 0:09:09]} Nd5 {[%emt 0:05:43]} 14. Ne2 {[%emt 0:12:05]} Nxe3 {[%emt 0:02:32]} 15. fxe3 {[%emt 0:04:55]} Nxc4 {[%emt 0:00:22]} 16. Nxc4 {[%emt 0:00:11]} Bh2+ {[%emt 0:00:09]} 17. Kh1 {[%emt 0:00:05]} cxb5 {[%emt 0:00:08]} 18. Nd2 {[%emt 0:01:06]} Bd6 {[%emt 0:02:51]} 19. Nd4 {[%emt 0:00:30]} Qc5 {[%emt 0:03:24]} 20. a4 {[%emt 0:02:35]} Qe5 {[%emt 0:02:06]} 21. N2f3 {[%emt 0:00:28]} Qxe3 {[%emt 0:00:31]} 22. Nxb5 {[%emt 0:01:17]} Bb8 {[%emt 0:00:20]} 23. Ra3 {[%emt 0:04:38]} a6 {[%emt 0:08:02]} 24. Rc3+ {[%emt 0:00:21]} Kd7 {[%emt 0:00:17]} 25. Nbd4 {[%emt 0:00:47]} Bg6 {[%emt 0:01:24]} 26. Qb1 {[%emt 0:00:34]} Rc8 {[%emt 0:11:45]} 27. Qxb7+ {[%emt 0:02:30]} Rc7 {[%emt 0:00:07]} 28. Rxc7+ {[%emt 0:00:10]} Bxc7 {[%emt 0:00:03]} 29. Re1 {[%emt 0:00:12]} Qf4 {[%emt 0:08:57]} 30. Ne5+ {[%emt 0:01:54]} Ke8 {[%emt 0:00:17]} 31. Qc8+ {[%emt 0:00:40]} Ke7 {[%emt 0:00:44]} 32. Qxc7+ {[%emt 0:00:06]} Kf6 {[%emt 0:00:18]} 33. Nd7+ {[%emt 0:00:13]} Kg5 {[%emt 0:00:19]} 34. Nf3+ {[%emt 0:00:03]} 1-0

[Event "94th FRA-ch Open B 2019"]
[Site "Chartres"]
[Date "2019.08.18"]
[Round "2.1"]
[White "Marrero Rodriguez, Alexis"]
[Black "Trouville, Remi"]
[Result "0-1"]
[ECO "B21"]
[WhiteElo "2091"]
[BlackElo "1991"]
[Annotator "NA"]
[PlyCount "64"]
[EventDate "2019.08.17"]
[EventType "swiss"]
[EventCountry "FRA"]
[SourceTitle "playchess.com"]
[Source "ChessBase"]
[SourceQuality "1"]
[TimeControl "40/5400+30:1800+30"]

1. e4 {[%emt 0:00:12]} c5 {[%emt 0:00:12]} 2. d4 {[%emt 0:00:10]} cxd4 {[%emt 0:01:12]} 3. c3 {[%emt 0:00:09]} dxc3 {[%emt 0:04:15]} 4. Nxc3 {[%emt 0:00:09]} e6 {[%emt 0:00:28]} 5. Nf3 {[%emt 0:00:38]} Ne7 {[%emt 0:03:52]} 6. Bg5 {[%emt 0:05:36]} a6 {[%emt 0:15:07]} 7. Bc4 {[%emt 0:02:13]} h6 {[%emt 0:01:46]} 8. Be3 {[%emt 0:02:48]} b5 {[%emt 0:11:21]} 9. Bb3 {[%emt 0:03:08]} Bb7 {[%emt 0:00:40]} 10. Qe2 {[%emt 0:01:28]} Ng6 {[%emt 0:01:28]} 11. O-O {[%emt 0:01:53]} Be7 {[%emt 0:03:32]} 12. Rfd1 {[%emt 0:04:07]} O-O {[%emt 0:01:20]} 13. Rac1 {[%emt 0:01:34]} Nc6 {[%emt 0:04:21]} 14. g3 {[%emt 0:07:33]} Na5 {[%emt 0:05:11]} 15. h4 {[%emt 0:08:16]} Nxb3 {[%emt 0:03:18]} 16. axb3 {[%emt 0:00:39]} b4 {[%emt 0:22:30]} 17. h5 {[%emt 0:10:49]} bxc3 {[%emt 0:00:48]} 18. hxg6 {[%emt 0:00:18]} fxg6 {[%emt 0:01:03]} 19. bxc3 {[%emt 0:01:56]} Bf6 {[%emt 0:04:32]} 20. Nd4 {[%emt 0:03:33]} Qe7 {[%emt 0:00:41]} 21. f3 {[%emt 0:01:33]} Rac8 {[%emt 0:01:44]} 22. Qd2 {[%emt 0:06:16]} Bxd4 {[%emt 0:04:30]} 23. Qxd4 {[%emt 0:03:54]} Rxf3 {[%emt 0:00:28]} 24. Kg2 {[%emt 0:01:51]} Rf7 {[%emt 0:01:42]} 25. Qd3 {[%emt 0:04:24]} d5 {[%emt 0:01:59]} 26. exd5 {[%emt 0:01:32]} Bxd5+ {[%emt 0:00:22]} 27. Kh2 {[%emt 0:01:24]} Rcf8 {[%emt 0:02:21]} 28. c4 {[%emt 0:02:43]} Ba8 {[%emt 0:00:57]} 29. Qxg6 {[%emt 0:03:32]} Rf2+ {[%emt 0:00:19]} 30. Bxf2 {[%emt 0:01:49]} Rxf2+ {[%emt 0:00:08]} 31. Kh3 {[%emt 0:02:30]} Bg2+ {[%emt 0:00:07]} 32. Kg4 {[%emt 0:00:43]} h5+ {[%emt 0:00:17]} 0-1

[Event "94th FRA-ch Open B 2019"]
[Site "Chartres"]
[Date "2019.08.18"]
[Round "2.2"]
[White "Dorval, Olivier"]
[Black "Partinico, Jeremy"]
[Result "1-0"]
[ECO "A45"]
[WhiteElo "1868"]
[BlackElo "1985"]
[Annotator "NA"]
[PlyCount "91"]
[EventDate "2019.08.17"]
[EventType "swiss"]
[EventCountry "FRA"]
[SourceTitle "playchess.com"]
[Source "ChessBase"]
[SourceQuality "1"]
[TimeControl "40/5400+30:1800+30"]

1. d4 {[%emt 0:00:00]} Nf6 {[%emt 0:00:00]} 2. Bf4 {[%emt 0:00:00]} c5 {[%emt 0:00:00]} 3. e3 {[%emt 0:00:00]} Qb6 {[%emt 0:00:54]} 4. Nc3 {[%emt 0:01:05]} cxd4 {[%emt 0:09:38]} 5. exd4 {[%emt 0:05:58]} e6 {[%emt 0:04:11]} 6. Rb1 {[%emt 0:16:22]} Bb4 {[%emt 0:02:43]} 7. Nge2 {[%emt 0:09:17]} Nc6 {[%emt 0:01:57]} 8. a3 {[%emt 0:04:53]} Bxc3+ {[%emt 0:04:23]} 9. bxc3 {[%emt 0:10:37]} Qa5 {[%emt 0:00:11]} 10. Bd6 {[%emt 0:02:31]} Ne4 {[%emt 0:00:23]} 11. Bb4 {[%emt 0:00:45]} Qd8 {[%emt 0:07:08]} 12. f3 {[%emt 0:02:46]} a5 {[%emt 0:04:50]} 13. fxe4 {[%emt 0:01:44]} axb4 {[%emt 0:00:30]} 14. axb4 {[%emt 0:00:23]} Qh4+ {[%emt 0:00:40]} 15. Ng3 {[%emt 0:00:22]} O-O {[%emt 0:00:42]} 16. Bd3 {[%emt 0:01:36]} f5 {[%emt 0:01:34]} 17. exf5 {[%emt 0:04:55]} exf5 {[%emt 0:00:15]} 18. O-O {[%emt 0:00:27]} f4 {[%emt 0:00:44]} 19. Qh5 {[%emt 0:02:52]} Qxh5 {[%emt 0:00:13]} 20. Nxh5 {[%emt 0:00:02]} g5 {[%emt 0:00:08]} 21. Bc4+ {[%emt 0:06:02]} Kh8 {[%emt 0:00:20]} 22. Ra1 {[%emt 0:08:22]} Rxa1 {[%emt 0:01:07]} 23. Rxa1 {[%emt 0:00:01]} d5 {[%emt 0:05:11]} 24. Bxd5 {[%emt 0:03:49]} Bg4 {[%emt 0:00:45]} 25. Bf3 {[%emt 0:00:09]} Bxf3 {[%emt 0:00:03]} 26. gxf3 {[%emt 0:00:02]} Kg8 {[%emt 0:00:45]} 27. h4 {[%emt 0:02:43]} gxh4 {[%emt 0:00:50]} 28. Kh2 {[%emt 0:02:30]} Rf5 {[%emt 0:00:09]} 29. Rg1+ {[%emt 0:00:08]} Kf7 {[%emt 0:01:04]} 30. Rg7+ {[%emt 0:01:37]} Kf8 {[%emt 0:00:05]} 31. Rxh7 {[%emt 0:00:08]} Ne7 {[%emt 0:01:18]} 32. Kh3 {[%emt 0:04:38]} Nd5 {[%emt 0:05:05]} 33. Kxh4 {[%emt 0:00:41]} b5 {[%emt 0:00:56]} 34. Ng7 {[%emt 0:06:49]} Rf6 {[%emt 0:01:08]} 35. Rh5 {[%emt 0:00:59]} Ne7 {[%emt 0:05:48]} 36. Kg5 {[%emt 0:02:11]} Kxg7 {[%emt 0:06:46]} 37. Rh7+ {[%emt 0:00:01]} Kxh7 {[%emt 0:00:02]} 38. Kxf6 {[%emt 0:00:07]} Nd5+ {[%emt 0:00:06]} 39. Ke6 {[%emt 0:00:56]} Nxc3 {[%emt 0:04:43]} 40. d5 {[%emt 0:00:15]} Ne2 {[%emt 0:07:11]} 41. d6 {[%emt 0:30:45]} Nd4+ {[%emt 0:30:03]} 42. Kd5 {[%emt 0:00:00]} Nf5 {[%emt 0:00:00]} 43. d7 {[%emt 0:00:00]} Ne7+ {[%emt 0:00:00]} 44. Kd6 {[%emt 0:00:00]} Nf5+ {[%emt 0:00:00]} 45. Ke6 {[%emt 0:00:00]} Ng7+ {[%emt 0:00:00]} 46. Kf7 {[%emt 0:00:00]} 1-0

[Event "94th FRA-ch Open B 2019"]
[Site "Chartres"]
[Date "2019.08.18"]
[Round "2.3"]
[White "Schneider, Mano"]
[Black "Antoine, Jean-Luc"]
[Result "1/2-1/2"]
[ECO "B50"]
[WhiteElo "1866"]
[BlackElo "1959"]
[Annotator "NA"]
[PlyCount "62"]
[EventDate "2019.08.17"]
[EventType "swiss"]
[EventCountry "FRA"]
[SourceTitle "playchess.com"]
[Source "ChessBase"]
[SourceQuality "1"]
[TimeControl "40/5400+30:1800+30"]

1. e4 {[%emt 0:00:00]} c5 {[%emt 0:00:00]} 2. Nf3 {[%emt 0:00:00]} d6 {[%emt 0:00:00]} 3. c3 {[%emt 0:00:14]} Nf6 {[%emt 0:00:17]} 4. h3 {[%emt 0:00:07]} Nc6 {[%emt 0:00:45]} 5. Bd3 {[%emt 0:00:21]} g6 {[%emt 0:01:39]} 6. Bc2 {[%emt 0:00:37]} e5 {[%emt 0:04:15]} 7. O-O {[%emt 0:01:28]} Bg7 {[%emt 0:00:18]} 8. d4 {[%emt 0:05:57]} O-O {[%emt 0:07:19]} 9. dxe5 {[%emt 0:06:04]} Nxe5 {[%emt 0:04:04]} 10. Nxe5 {[%emt 0:09:07]} dxe5 {[%emt 0:00:11]} 11. Qe2 {[%emt 0:01:11]} Be6 {[%emt 0:04:24]} 12. Bb3 {[%emt 0:10:36]} Bxb3 {[%emt 0:06:57]} 13. axb3 {[%emt 0:00:08]} Qb6 {[%emt 0:01:14]} 14. Qc2 {[%emt 0:05:48]} Qc6 {[%emt 0:01:02]} 15. f3 {[%emt 0:03:37]} a6 {[%emt 0:03:26]} 16. c4 {[%emt 0:06:13]} b6 {[%emt 0:16:59]} 17. Nc3 {[%emt 0:01:35]} a5 {[%emt 0:00:31]} 18. Nd5 {[%emt 0:01:44]} Nxd5 {[%emt 0:00:45]} 19. cxd5 {[%emt 0:01:06]} Qd6 {[%emt 0:01:25]} 20. Be3 {[%emt 0:04:12]} Rad8 {[%emt 0:02:54]} 21. Qc4 {[%emt 0:05:25]} Qe7 {[%emt 0:00:54]} 22. Qb5 {[%emt 0:05:50]} Rd6 {[%emt 0:00:32]} 23. Rfc1 {[%emt 0:04:39]} Bf6 {[%emt 0:04:36]} 24. b4 {[%emt 0:03:40]} axb4 {[%emt 0:02:10]} 25. Ra6 {[%emt 0:00:32]} Bg5 {[%emt 0:01:52]} 26. Bxg5 {[%emt 0:05:39]} Qxg5 {[%emt 0:00:03]} 27. Rxc5 {[%emt 0:01:13]} Qe3+ {[%emt 0:01:54]} 28. Kh1 {[%emt 0:00:02]} bxc5 {[%emt 0:04:01]} 29. Rxd6 {[%emt 0:00:02]} Qc1+ {[%emt 0:02:51]} 30. Kh2 {[%emt 0:00:01]} Qf4+ {[%emt 0:00:30]} 31. Kg1 {[%emt 0:01:23]} Qe3+ {[%emt 0:01:15]} 1/2-1/2

[Event "94th FRA-ch Open B 2019"]
[Site "Chartres"]
[Date "2019.08.18"]
[Round "2.4"]
[White "Lebrun, Elias"]
[Black "Le Solleu, Guillaume"]
[Result "0-1"]
[ECO "E43"]
[WhiteElo "1862"]
[BlackElo "1944"]
[Annotator "NA"]
[PlyCount "110"]
[EventDate "2019.08.17"]
[EventType "swiss"]
[EventCountry "FRA"]
[SourceTitle "playchess.com"]
[Source "ChessBase"]
[SourceQuality "1"]
[TimeControl "40/5400+30:1800+30"]

1. d4 {[%emt 0:00:00]} Nf6 {[%emt 0:00:00]} 2. c4 {[%emt 0:00:59]} e6 {[%emt 0:00:00]} 3. Nc3 {[%emt 0:00:49]} Bb4 {[%emt 0:00:00]} 4. e3 {[%emt 0:01:14]} c5 {[%emt 0:00:00]} 5. Nf3 {[%emt 0:00:58]} b6 {[%emt 0:00:48]} 6. Bd3 {[%emt 0:02:05]} Bb7 {[%emt 0:00:07]} 7. O-O {[%emt 0:00:49]} Bxc3 {[%emt 0:00:07]} 8. bxc3 {[%emt 0:00:29]} O-O {[%emt 0:00:14]} 9. Re1 {[%emt 0:01:10]} Ne4 {[%emt 0:04:50]} 10. Qc2 {[%emt 0:01:53]} f5 {[%emt 0:02:12]} 11. Nd2 {[%emt 0:03:02]} Qh4 {[%emt 0:10:13]} 12. g3 {[%emt 0:10:07]} Qf6 {[%emt 0:01:30]} 13. Ba3 {[%emt 0:07:11]} d6 {[%emt 0:04:49]} 14. f4 {[%emt 0:02:56]} Nxd2 {[%emt 0:11:24]} 15. Qxd2 {[%emt 0:00:05]} Nd7 {[%emt 0:07:24]} 16. e4 {[%emt 0:08:36]} cxd4 {[%emt 0:24:58]} 17. e5 {[%emt 0:02:56]} dxe5 {[%emt 0:00:12]} 18. fxe5 {[%emt 0:01:58]} Nxe5 {[%emt 0:03:04]} 19. Rxe5 {[%emt 0:04:33]} Qxe5 {[%emt 0:00:37]} 20. Re1 {[%emt 0:00:10]} dxc3 {[%emt 0:05:04]} 21. Qf2 {[%emt 0:00:59]} Qf6 {[%emt 0:01:29]} 22. Bd6 {[%emt 0:08:58]} Rfd8 {[%emt 0:06:58]} 23. Be5 {[%emt 0:00:10]} Qh6 {[%emt 0:03:25]} 24. Re3 {[%emt 0:03:15]} Rxd3 {[%emt 0:06:23]} 25. Rxd3 {[%emt 0:00:07]} Qc1+ {[%emt 0:00:10]} 26. Qf1 {[%emt 0:00:08]} Qxf1+ {[%emt 0:00:13]} 27. Kxf1 {[%emt 0:00:06]} c2 {[%emt 0:00:20]} 28. Bb2 {[%emt 0:00:40]} Be4 {[%emt 0:01:52]} 29. Rd7 {[%emt 0:00:07]} e5 {[%emt 0:00:13]} 30. Ke2 {[%emt 0:00:29]} Rc8 {[%emt 0:00:34]} 31. Kd2 {[%emt 0:02:58]} Rxc4 {[%emt 0:01:09]} 32. Rxa7 {[%emt 0:01:40]} Rc5 {[%emt 0:01:05]} 33. Rd7 {[%emt 0:01:08]} Rd5+ {[%emt 0:01:18]} 34. Rxd5 {[%emt 0:00:08]} Bxd5 {[%emt 0:00:06]} 35. Kxc2 {[%emt 0:00:30]} Bxa2 {[%emt 0:00:21]} 36. Bxe5 {[%emt 0:00:07]} g5 {[%emt 0:00:26]} 37. Kc3 {[%emt 0:00:53]} b5 {[%emt 0:00:16]} 38. Bd6 {[%emt 0:00:40]} Kf7 {[%emt 0:00:08]} 39. Kd4 {[%emt 0:00:18]} Ke6 {[%emt 0:00:20]} 40. Bb4 {[%emt 0:00:43]} Kf6 {[%emt 0:01:52]} 41. Bd2 {[%emt 0:30:12]} Kg6 {[%emt 0:30:42]} 42. Ke5 {[%emt 0:01:24]} Bb1 {[%emt 0:00:44]} 43. Kd4 {[%emt 0:02:09]} Kh5 {[%emt 0:00:16]} 44. Ke5 {[%emt 0:03:26]} Kg4 {[%emt 0:00:29]} 45. Kd4 {[%emt 0:02:56]} h6 {[%emt 0:00:57]} 46. h4 {[%emt 0:01:38]} gxh4 {[%emt 0:00:33]} 47. gxh4 {[%emt 0:00:06]} h5 {[%emt 0:00:10]} 48. Ke5 {[%emt 0:03:31]} Bc2 {[%emt 0:01:16]} 49. Be1 {[%emt 0:02:32]} f4 {[%emt 0:00:07]} 50. Kd4 {[%emt 0:00:08]} Kf3 {[%emt 0:00:44]} 51. Bd2 {[%emt 0:00:45]} Kg3 {[%emt 0:00:15]} 52. Be1+ {[%emt 0:00:22]} Kg2 {[%emt 0:00:07]} 53. Kc3 {[%emt 0:05:11]} Ba4 {[%emt 0:00:13]} 54. Kd3 {[%emt 0:00:44]} f3 {[%emt 0:00:09]} 55. Ke3 {[%emt 0:01:40]} b4 {[%emt 0:00:08]} 0-1